[Event "Late-Titled-Tuesday-Blitz-April-23-2024"]
[Site "Chess.com"]
[Date "2024.04.23"]
[Round "1"]
[White "Sesleria"]
[Black "yaguigor"]
[Result "0-1"]
[WhiteElo "2135"]
[BlackElo "2576"]
[TimeControl "180+1"]
[EndTime "14:06:06 PDT"]
[Termination "yaguigor won by resignation"]

1. c4 {[%clk 0:02:59.1]} 1... e5 {[%clk 0:02:51.1]} 2. Nc3 {[%clk 0:02:57.9]}
2... d6 {[%clk 0:02:47.2]} 3. Nf3 {[%clk 0:02:54.7]} 3... f5 {[%clk 0:02:46.2]}
4. d4 {[%clk 0:02:52.7]} 4... e4 {[%clk 0:02:45.4]} 5. Ng5 {[%clk 0:02:50.2]}
5... h6 {[%clk 0:02:39.7]} 6. Nh3 {[%clk 0:02:47.4]} 6... g5 {[%clk 0:02:38.8]}
7. e3 {[%clk 0:02:37.9]} 7... Nf6 {[%clk 0:02:38.3]} 8. Ng1 {[%clk 0:02:07.8]}
8... Bg7 {[%clk 0:02:34.6]} 9. h4 {[%clk 0:02:06]} 9... O-O {[%clk 0:02:23.1]}
10. hxg5 {[%clk 0:02:03.9]} 10... hxg5 {[%clk 0:02:22]} 11. Nh3 {[%clk
0:02:03.3]} 11... Ng4 {[%clk 0:02:20.3]} 12. Be2 {[%clk 0:02:02.1]} 12... Nh6
{[%clk 0:02:15.2]} 13. Bd2 {[%clk 0:01:32.6]} 13... c6 {[%clk 0:02:13]} 14. d5
{[%clk 0:01:31.2]} 14... c5 {[%clk 0:02:11.4]} 15. Qc2 {[%clk 0:01:25.3]} 15...
Nd7 {[%clk 0:02:08.1]} 16. f4 {[%clk 0:01:24.1]} 16... g4 {[%clk 0:01:57.1]} 17.
Ng5 {[%clk 0:01:23]} 17... Nf6 {[%clk 0:01:52.2]} 18. O-O-O {[%clk 0:01:09.7]}
18... Qe7 {[%clk 0:01:51.3]} 19. Ne6 {[%clk 0:01:03.2]} 19... Bxe6 {[%clk
0:01:49.7]} 20. dxe6 {[%clk 0:01:03.7]} 20... Qxe6 {[%clk 0:01:50.2]} 21. Nd5
{[%clk 0:01:03.8]} 21... Nxd5 {[%clk 0:01:48.4]} 22. cxd5 {[%clk 0:01:04.3]}
22... Qd7 {[%clk 0:01:43.3]} 23. Rh5 {[%clk 0:00:54.1]} 23... Rf6 {[%clk
0:01:37.1]} 24. Rdh1 {[%clk 0:00:53.6]} 24... Rg6 {[%clk 0:01:35.1]} 25. Bc3
{[%clk 0:00:37.7]} 25... a6 {[%clk 0:01:28.1]} 26. Rg5 {[%clk 0:00:33.7]} 26...
Rxg5 {[%clk 0:01:24.4]} 27. fxg5 {[%clk 0:00:34.1]} 27... Nf7 {[%clk 0:01:24.4]}
28. g6 {[%clk 0:00:23.3]} 28... Ne5 {[%clk 0:01:24.1]} 29. Bxe5 {[%clk
0:00:19.2]} 29... Bxe5 {[%clk 0:01:23.8]} 30. Bxg4 {[%clk 0:00:18.7]} 30... fxg4
{[%clk 0:01:14.8]} 31. Qxe4 {[%clk 0:00:18.9]} 31... Rf8 {[%clk 0:01:13.2]} 32.
g3 {[%clk 0:00:13.7]} 32... Qf5 {[%clk 0:01:12.7]} 33. Qg2 {[%clk 0:00:12]}
33... Qxg6 {[%clk 0:01:11.4]} 34. Qh2 {[%clk 0:00:11.8]} 34... Rf3 {[%clk
0:01:09.5]} 0-1

[Event "Late-Titled-Tuesday-Blitz-April-23-2024"]
[Site "Chess.com"]
[Date "2024.04.23"]
[Round "1"]
[White "Rytenko_V"]
[Black "TigrVShlyape"]
[Result "0-1"]
[WhiteElo "2527"]
[BlackElo "3026"]
[TimeControl "180+1"]
[EndTime "14:06:09 PDT"]
[Termination "TigrVShlyape won by resignation"]

1. d4 {[%clk 0:02:58.9]} 1... d5 {[%clk 0:02:57.4]} 2. Nf3 {[%clk 0:02:58.7]}
2... Nf6 {[%clk 0:02:57.3]} 3. c4 {[%clk 0:02:58.9]} 3... c6 {[%clk 0:02:57.7]}
4. Nc3 {[%clk 0:02:56.7]} 4... a6 {[%clk 0:02:58.1]} 5. cxd5 {[%clk 0:02:54.1]}
5... cxd5 {[%clk 0:02:57.4]} 6. Bf4 {[%clk 0:02:54.7]} 6... e6 {[%clk
0:02:57.5]} 7. e3 {[%clk 0:02:54.6]} 7... Bd6 {[%clk 0:02:57.3]} 8. Bxd6 {[%clk
0:02:53.2]} 8... Qxd6 {[%clk 0:02:57.1]} 9. Rc1 {[%clk 0:02:51.7]} 9... Nc6
{[%clk 0:02:56.9]} 10. Bd3 {[%clk 0:02:51.9]} 10... O-O {[%clk 0:02:56.6]} 11.
O-O {[%clk 0:02:51.5]} 11... Bd7 {[%clk 0:02:56.9]} 12. a3 {[%clk 0:02:50.3]}
12... Rfc8 {[%clk 0:02:55.5]} 13. Bb1 {[%clk 0:02:47.9]} 13... Be8 {[%clk
0:02:54.2]} 14. b4 {[%clk 0:02:36.4]} 14... a5 {[%clk 0:02:52.9]} 15. b5 {[%clk
0:02:31.7]} 15... Ne7 {[%clk 0:02:52.1]} 16. Qb3 {[%clk 0:02:18]} 16... b6
{[%clk 0:02:45.1]} 17. Ne5 {[%clk 0:02:16.8]} 17... Nd7 {[%clk 0:02:43.9]} 18.
Nxd7 {[%clk 0:02:14.5]} 18... Bxd7 {[%clk 0:02:41.3]} 19. Ne2 {[%clk 0:02:11.4]}
19... Rxc1 {[%clk 0:02:36.4]} 20. Rxc1 {[%clk 0:02:12.3]} 20... Rc8 {[%clk
0:02:36]} 21. Rxc8+ {[%clk 0:02:11.1]} 21... Nxc8 {[%clk 0:02:34.5]} 22. h4
{[%clk 0:02:07.7]} 22... Qc7 {[%clk 0:02:31.2]} 23. Nf4 {[%clk 0:02:00.5]} 23...
Nd6 {[%clk 0:02:26.7]} 24. a4 {[%clk 0:01:48.1]} 24... Qc1+ {[%clk 0:02:20.4]}
25. Kh2 {[%clk 0:01:46.6]} 25... g6 {[%clk 0:02:07.3]} 26. Nd3 {[%clk
0:01:44.1]} 26... Qc7 {[%clk 0:02:04.8]} 27. g3 {[%clk 0:01:37.8]} 27... f6
{[%clk 0:02:03.8]} 28. h5 {[%clk 0:01:31.9]} 28... g5 {[%clk 0:02:01.8]} 29. Kg2
{[%clk 0:01:24.1]} 29... h6 {[%clk 0:01:59.4]} 30. Nb2 {[%clk 0:01:21.5]} 30...
Be8 {[%clk 0:01:58.5]} 31. g4 {[%clk 0:01:18.3]} 31... Bf7 {[%clk 0:01:49.9]}
32. Qd3 {[%clk 0:01:17.3]} 32... Ne4 {[%clk 0:01:47.9]} 33. Qa3 {[%clk
0:01:06.6]} 33... Qc3 {[%clk 0:01:45.4]} 34. Qe7 {[%clk 0:00:46.7]} 34... Kg7
{[%clk 0:01:37]} 35. Nd1 {[%clk 0:00:13.2]} 35... Qb3 {[%clk 0:01:33.4]} 36.
Bxe4 {[%clk 0:00:12.1]} 36... dxe4 {[%clk 0:01:32.7]} 37. Qb7 {[%clk 0:00:12.8]}
37... Qxd1 {[%clk 0:01:32.4]} 38. Qxb6 {[%clk 0:00:13.2]} 38... Qxg4+ {[%clk
0:01:32.1]} 39. Kf1 {[%clk 0:00:09.8]} 39... Qxh5 {[%clk 0:01:30]} 40. Qxa5
{[%clk 0:00:06.1]} 40... Qh1+ {[%clk 0:01:28.4]} 41. Ke2 {[%clk 0:00:06.2]}
41... Bh5+ {[%clk 0:01:28.8]} 0-1

[Event "Late-Titled-Tuesday-Blitz-April-23-2024"]
[Site "Chess.com"]
[Date "2024.04.23"]
[Round "1"]
[White "Arteler"]
[Black "Russian_berezka"]
[Result "0-1"]
[WhiteElo "2313"]
[BlackElo "2631"]
[TimeControl "180+1"]
[EndTime "14:06:10 PDT"]
[Termination "Russian_berezka won on time"]

1. e4 {[%clk 0:03:00.9]} 1... c5 {[%clk 0:02:59.4]} 2. Nf3 {[%clk 0:02:59.9]}
2... d6 {[%clk 0:03:00.1]} 3. d4 {[%clk 0:03:00.2]} 3... cxd4 {[%clk 0:03:01]}
4. Nxd4 {[%clk 0:02:59.9]} 4... Nf6 {[%clk 0:03:01.5]} 5. Nc3 {[%clk 0:02:59.6]}
5... a6 {[%clk 0:03:02.2]} 6. Be3 {[%clk 0:02:59.6]} 6... e5 {[%clk 0:03:01.9]}
7. Nb3 {[%clk 0:02:57.5]} 7... Be7 {[%clk 0:03:02.1]} 8. f3 {[%clk 0:02:57.1]}
8... Be6 {[%clk 0:03:02.2]} 9. Qd2 {[%clk 0:02:56.8]} 9... h5 {[%clk 0:03:02.9]}
10. O-O-O {[%clk 0:02:55.9]} 10... Nbd7 {[%clk 0:02:59.8]} 11. Be2 {[%clk
0:02:40.7]} 11... b5 {[%clk 0:02:59.5]} 12. g4 {[%clk 0:02:25.1]} 12... hxg4
{[%clk 0:02:49.6]} 13. Nd5 {[%clk 0:02:12.3]} 13... b4 {[%clk 0:02:50.5]} 14.
fxg4 {[%clk 0:02:01.6]} 14... Nxe4 {[%clk 0:02:16.5]} 15. Qd3 {[%clk 0:02:01.4]}
15... Bxd5 {[%clk 0:02:02]} 16. Qxd5 {[%clk 0:01:52.1]} 16... Nef6 {[%clk
0:02:02.6]} 17. Qc4 {[%clk 0:01:20.6]} 17... d5 {[%clk 0:01:57.6]} 18. Qd3
{[%clk 0:01:08.8]} 18... d4 {[%clk 0:01:29.9]} 19. Bg5 {[%clk 0:01:01.8]} 19...
Nd5 {[%clk 0:01:22.2]} 20. Bxe7 {[%clk 0:00:57]} 20... Qxe7 {[%clk 0:01:23.1]}
21. Bf3 {[%clk 0:00:53.6]} 21... Nf4 {[%clk 0:01:18.9]} 22. Qe4 {[%clk 0:00:41]}
22... Rc8 {[%clk 0:01:18.9]} 23. Rhe1 {[%clk 0:00:34.7]} 23... d3 {[%clk
0:01:13.2]} 24. Qb7 {[%clk 0:00:16.2]} 24... O-O {[%clk 0:00:52.6]} 25. c4
{[%clk 0:00:03.9]} 25... bxc3 {[%clk 0:00:52]} 0-1

[Event "Late-Titled-Tuesday-Blitz-April-23-2024"]
[Site "Chess.com"]
[Date "2024.04.23"]
[Round "1"]
[White "Firouzja2003"]
[Black "Boorchess"]
[Result "1-0"]
[WhiteElo "3105"]
[BlackElo "2538"]
[TimeControl "180+1"]
[EndTime "14:06:11 PDT"]
[Termination "Firouzja2003 won by resignation"]

1. e4 {[%clk 0:02:58.2]} 1... e5 {[%clk 0:02:59.1]} 2. Nf3 {[%clk 0:02:58.7]}
2... Nf6 {[%clk 0:02:58.8]} 3. Nxe5 {[%clk 0:02:58.9]} 3... d6 {[%clk
0:02:58.6]} 4. Nf3 {[%clk 0:02:59.7]} 4... Nxe4 {[%clk 0:02:58.7]} 5. d3 {[%clk
0:03:00.3]} 5... Nf6 {[%clk 0:02:58.7]} 6. d4 {[%clk 0:03:01.1]} 6... g6 {[%clk
0:02:59]} 7. Bd3 {[%clk 0:03:02]} 7... Bg7 {[%clk 0:02:59.3]} 8. O-O {[%clk
0:03:02.9]} 8... O-O {[%clk 0:02:59.4]} 9. h3 {[%clk 0:03:03.8]} 9... Nc6 {[%clk
0:02:59.5]} 10. Re1 {[%clk 0:03:03.9]} 10... Re8 {[%clk 0:02:59.7]} 11. Be3
{[%clk 0:03:01.4]} 11... Ne7 {[%clk 0:02:59.3]} 12. Nc3 {[%clk 0:02:59.9]} 12...
Ned5 {[%clk 0:02:58.7]} 13. Nxd5 {[%clk 0:02:57.4]} 13... Nxd5 {[%clk
0:02:58.4]} 14. Bg5 {[%clk 0:02:58.3]} 14... Bf6 {[%clk 0:02:50.9]} 15. Qd2
{[%clk 0:02:58.9]} 15... Rxe1+ {[%clk 0:02:42.6]} 16. Rxe1 {[%clk 0:02:58.6]}
16... Bd7 {[%clk 0:02:31.1]} 17. Be4 {[%clk 0:02:52.4]} 17... Bc6 {[%clk
0:02:15.1]} 18. c4 {[%clk 0:02:51]} 18... Bxg5 {[%clk 0:02:13]} 19. Nxg5 {[%clk
0:02:50]} 19... Nf6 {[%clk 0:02:11.3]} 20. Bxc6 {[%clk 0:02:45.4]} 20... bxc6
{[%clk 0:02:11.1]} 21. Qf4 {[%clk 0:02:45.6]} 21... Kg7 {[%clk 0:02:05.2]} 22.
Re3 {[%clk 0:02:42.8]} 22... h6 {[%clk 0:02:01.9]} 23. Nf3 {[%clk 0:02:37.7]}
23... Qd7 {[%clk 0:01:55.1]} 24. Ra3 {[%clk 0:02:33.3]} 24... Qe6 {[%clk
0:01:49.5]} 25. Qc1 {[%clk 0:02:31]} 25... c5 {[%clk 0:01:25.1]} 26. Re3 {[%clk
0:02:26.6]} 26... Qd7 {[%clk 0:01:22.9]} 27. dxc5 {[%clk 0:02:25.1]} 27... dxc5
{[%clk 0:01:22.9]} 28. Qc3 {[%clk 0:02:25.9]} 28... Qd6 {[%clk 0:01:13.3]} 29.
Rd3 {[%clk 0:02:15.5]} 29... Qb6 {[%clk 0:01:13.1]} 30. Ne5 {[%clk 0:02:14]}
30... Qb4 {[%clk 0:01:08.5]} 31. Qc1 {[%clk 0:01:59.5]} 31... Re8 {[%clk
0:01:04.6]} 32. Re3 {[%clk 0:01:59.7]} 32... Qa4 {[%clk 0:00:55.5]} 33. a3
{[%clk 0:01:56.6]} 33... Rd8 {[%clk 0:00:53.4]} 34. b3 {[%clk 0:01:53.4]} 34...
Qa6 {[%clk 0:00:47.9]} 35. Nd3 {[%clk 0:01:50.3]} 35... Qd6 {[%clk 0:00:41.9]}
36. Qc3 {[%clk 0:01:50]} 36... Qd4 {[%clk 0:00:39.1]} 37. Qxd4 {[%clk
0:01:45.5]} 37... cxd4 {[%clk 0:00:38.6]} 38. Re5 {[%clk 0:01:46.2]} 38... Rb8
{[%clk 0:00:26.9]} 39. b4 {[%clk 0:01:46]} 39... c6 {[%clk 0:00:25.1]} 40. Ra5
{[%clk 0:01:39.5]} 40... Rb6 {[%clk 0:00:22.8]} 41. Rxa7 {[%clk 0:01:38.2]}
41... Ne4 {[%clk 0:00:20.7]} 42. Ne5 {[%clk 0:01:38.4]} 42... Nd2 {[%clk
0:00:19.7]} 43. Rxf7+ {[%clk 0:01:37.5]} 43... Kg8 {[%clk 0:00:19.5]} 44. Rd7
{[%clk 0:01:36.9]} 44... Ra6 {[%clk 0:00:18.7]} 45. Rxd4 {[%clk 0:01:36.6]}
45... Nb1 {[%clk 0:00:17.3]} 46. Rd6 {[%clk 0:01:36.6]} 46... Nxa3 {[%clk
0:00:16.5]} 47. Rxg6+ {[%clk 0:01:37.3]} 47... Kh7 {[%clk 0:00:16]} 48. b5
{[%clk 0:01:36.7]} 48... Ra8 {[%clk 0:00:14.1]} 49. Rxc6 {[%clk 0:01:36.4]} 1-0

[Event "Late-Titled-Tuesday-Blitz-April-23-2024"]
[Site "Chess.com"]
[Date "2024.04.23"]
[Round "1"]
[White "reevecanada"]
[Black "VeraVujovic"]
[Result "1-0"]
[WhiteElo "2616"]
[BlackElo "2259"]
[TimeControl "180+1"]
[EndTime "14:06:11 PDT"]
[Termination "reevecanada won by checkmate"]

1. e4 {[%clk 0:02:53.9]} 1... c6 {[%clk 0:02:59.9]} 2. Nf3 {[%clk 0:02:46.8]}
2... d5 {[%clk 0:03:00]} 3. Nc3 {[%clk 0:02:46.5]} 3... dxe4 {[%clk 0:02:59.1]}
4. Nxe4 {[%clk 0:02:41.4]} 4... Nf6 {[%clk 0:03:00]} 5. Nxf6+ {[%clk 0:02:41.9]}
5... exf6 {[%clk 0:02:59.5]} 6. d4 {[%clk 0:02:42.8]} 6... Bd6 {[%clk
0:02:57.2]} 7. Bd3 {[%clk 0:02:42.8]} 7... Nd7 {[%clk 0:02:53.3]} 8. O-O {[%clk
0:02:42]} 8... O-O {[%clk 0:02:53.4]} 9. h3 {[%clk 0:02:42.6]} 9... Re8 {[%clk
0:02:53.7]} 10. c4 {[%clk 0:02:43.2]} 10... Nf8 {[%clk 0:02:54]} 11. b3 {[%clk
0:02:43.1]} 11... Qc7 {[%clk 0:02:49.7]} 12. Bb2 {[%clk 0:02:41]} 12... Be6
{[%clk 0:02:49]} 13. Qc2 {[%clk 0:02:40.5]} 13... Rad8 {[%clk 0:02:48.3]} 14.
Rfe1 {[%clk 0:02:39]} 14... Ng6 {[%clk 0:02:43.9]} 15. Bf5 {[%clk 0:02:35.6]}
15... Bxf5 {[%clk 0:02:42]} 16. Qxf5 {[%clk 0:02:34.9]} 16... Qc8 {[%clk
0:02:41]} 17. Qxc8 {[%clk 0:02:33.4]} 17... Rxc8 {[%clk 0:02:39.6]} 18. g3
{[%clk 0:02:33]} 18... Kf8 {[%clk 0:02:38.5]} 19. Kg2 {[%clk 0:02:32.5]} 19...
Rxe1 {[%clk 0:02:38.5]} 20. Rxe1 {[%clk 0:02:31.1]} 20... Re8 {[%clk 0:02:39.1]}
21. Rxe8+ {[%clk 0:02:30.4]} 21... Kxe8 {[%clk 0:02:40]} 22. a3 {[%clk
0:02:29.3]} 22... c5 {[%clk 0:02:35]} 23. d5 {[%clk 0:02:28.7]} 23... Ne5 {[%clk
0:02:35.1]} 24. Nd2 {[%clk 0:02:26.3]} 24... Nd3 {[%clk 0:02:34.5]} 25. Ne4
{[%clk 0:02:25.1]} 25... Bf8 {[%clk 0:02:23]} 26. Bc3 {[%clk 0:02:22.9]} 26...
f5 {[%clk 0:02:21.2]} 27. Nd2 {[%clk 0:02:21.3]} 27... f6 {[%clk 0:02:17]} 28.
f4 {[%clk 0:02:20.9]} 28... Ne1+ {[%clk 0:02:07.7]} 29. Kf2 {[%clk 0:02:20.3]}
29... Nc2 {[%clk 0:02:08.3]} 30. Bb2 {[%clk 0:02:13.4]} 30... a6 {[%clk
0:01:58]} 31. Ke2 {[%clk 0:02:10.6]} 31... b5 {[%clk 0:01:57.5]} 32. Kd3 {[%clk
0:02:10]} 32... Ne1+ {[%clk 0:01:56.7]} 33. Ke2 {[%clk 0:02:09.5]} 33... Nc2
{[%clk 0:01:56.7]} 34. Nf3 {[%clk 0:02:04.8]} 34... bxc4 {[%clk 0:01:43.3]} 35.
bxc4 {[%clk 0:02:05.7]} 35... Nd4+ {[%clk 0:01:43.7]} 36. Nxd4 {[%clk
0:02:04.2]} 36... cxd4 {[%clk 0:01:44.6]} 37. Kd3 {[%clk 0:02:04.7]} 37... Bc5
{[%clk 0:01:44.7]} 38. a4 {[%clk 0:02:04.5]} 38... h5 {[%clk 0:01:22.4]} 39.
Bxd4 {[%clk 0:02:05.4]} 39... Bb4 {[%clk 0:01:22.7]} 40. c5 {[%clk 0:02:02.5]}
40... Be1 {[%clk 0:01:20.8]} 41. c6 {[%clk 0:01:55.8]} 41... Bxg3 {[%clk
0:01:06.8]} 42. Ke3 {[%clk 0:01:55.9]} 42... g5 {[%clk 0:00:53.3]} 43. Bxf6
{[%clk 0:01:49.2]} 43... Bxf4+ {[%clk 0:00:49.1]} 44. Kf3 {[%clk 0:01:48.9]}
44... Bd2 {[%clk 0:00:47.8]} 45. d6 {[%clk 0:01:46.9]} 45... g4+ {[%clk
0:00:42.5]} 46. hxg4 {[%clk 0:01:46.4]} 46... fxg4+ {[%clk 0:00:42.5]} 47. Ke2
{[%clk 0:01:46.8]} 47... Ba5 {[%clk 0:00:38.6]} 48. Bh4 {[%clk 0:01:43.8]} 48...
Bb6 {[%clk 0:00:32]} 49. Kd3 {[%clk 0:01:43.7]} 49... Ba5 {[%clk 0:00:26.5]} 50.
Ke4 {[%clk 0:01:41.7]} 50... Bb6 {[%clk 0:00:25.9]} 51. Kf5 {[%clk 0:01:41.5]}
51... Ba5 {[%clk 0:00:23.5]} 52. Kg6 {[%clk 0:01:41.3]} 52... Bd8 {[%clk
0:00:17.8]} 53. d7+ {[%clk 0:01:37.4]} 53... Kf8 {[%clk 0:00:18.3]} 54. Bxd8
{[%clk 0:01:37.7]} 54... g3 {[%clk 0:00:19.2]} 55. Bf6 {[%clk 0:01:38.2]} 55...
g2 {[%clk 0:00:19.3]} 56. d8=R# {[%clk 0:01:38.7]} 1-0

[Event "Late-Titled-Tuesday-Blitz-April-23-2024"]
[Site "Chess.com"]
[Date "2024.04.23"]
[Round "1"]
[White "Alexei_Gubajdullin"]
[Black "finec2"]
[Result "0-1"]
[WhiteElo "2586"]
[BlackElo "2222"]
[TimeControl "180+1"]
[EndTime "14:06:19 PDT"]
[Termination "finec2 won by checkmate"]

1. Nf3 {[%clk 0:03:00.1]} 1... Nf6 {[%clk 0:02:59.6]} 2. g3 {[%clk 0:02:59.3]}
2... g6 {[%clk 0:03:00.1]} 3. Bg2 {[%clk 0:02:59.4]} 3... Bg7 {[%clk 0:03:00.7]}
4. O-O {[%clk 0:02:57.8]} 4... O-O {[%clk 0:03:01.4]} 5. d3 {[%clk 0:02:56.7]}
5... d6 {[%clk 0:03:02.3]} 6. Nbd2 {[%clk 0:02:52.8]} 6... c5 {[%clk 0:03:02.2]}
7. e4 {[%clk 0:02:51.1]} 7... Nc6 {[%clk 0:03:03]} 8. Nc4 {[%clk 0:02:50.7]}
8... b5 {[%clk 0:03:00.6]} 9. Re1 {[%clk 0:02:51.6]} 9... bxc4 {[%clk 0:03:00]}
10. e5 {[%clk 0:02:51.6]} 10... Ne8 {[%clk 0:02:54.1]} 11. dxc4 {[%clk
0:02:49.1]} 11... Rb8 {[%clk 0:02:40.5]} 12. exd6 {[%clk 0:02:44.8]} 12... Nxd6
{[%clk 0:02:21.8]} 13. Nd2 {[%clk 0:02:44]} 13... Bb7 {[%clk 0:02:17.3]} 14. c3
{[%clk 0:02:41.5]} 14... Ne5 {[%clk 0:02:11.1]} 15. Bxb7 {[%clk 0:02:40.8]}
15... Rxb7 {[%clk 0:02:10]} 16. Qe2 {[%clk 0:02:40.1]} 16... e6 {[%clk
0:01:55.5]} 17. f4 {[%clk 0:02:37.6]} 17... Nd7 {[%clk 0:01:50.2]} 18. Rd1
{[%clk 0:02:36.2]} 18... Qc7 {[%clk 0:01:49.6]} 19. Nf3 {[%clk 0:02:29.6]} 19...
Nf5 {[%clk 0:01:39.5]} 20. Rd3 {[%clk 0:02:24.2]} 20... h5 {[%clk 0:01:35.4]}
21. b3 {[%clk 0:02:23]} 21... Rd8 {[%clk 0:01:33.3]} 22. Bd2 {[%clk 0:02:17.2]}
22... Nb8 {[%clk 0:01:29.4]} 23. Be1 {[%clk 0:02:15.8]} 23... Rxd3 {[%clk
0:01:28.6]} 24. Qxd3 {[%clk 0:02:15.7]} 24... Qd6 {[%clk 0:01:26.5]} 25. Qe2
{[%clk 0:02:15.4]} 25... Rd7 {[%clk 0:01:25.3]} 26. Bf2 {[%clk 0:02:09.6]} 26...
Qd3 {[%clk 0:01:16.8]} 27. Qxd3 {[%clk 0:02:09]} 27... Rxd3 {[%clk 0:01:16.5]}
28. Ne5 {[%clk 0:02:09.3]} 28... Bxe5 {[%clk 0:01:15.9]} 29. fxe5 {[%clk
0:02:09.2]} 29... Nd7 {[%clk 0:01:12.8]} 30. b4 {[%clk 0:02:08.4]} 30... Rxc3
{[%clk 0:01:08.9]} 31. Rd1 {[%clk 0:02:07.7]} 31... Nxe5 {[%clk 0:01:03.3]} 32.
Bxc5 {[%clk 0:02:05.8]} 32... Rxc4 {[%clk 0:01:02.2]} 33. a3 {[%clk 0:02:00.8]}
33... a6 {[%clk 0:01:01.8]} 34. Rd8+ {[%clk 0:01:57.1]} 34... Kg7 {[%clk
0:00:58.3]} 35. Rc8 {[%clk 0:01:54.1]} 35... Re4 {[%clk 0:00:45.5]} 36. Bf8+
{[%clk 0:01:47.9]} 36... Kf6 {[%clk 0:00:44.5]} 37. Rc2 {[%clk 0:01:40.7]} 37...
h4 {[%clk 0:00:42.9]} 38. gxh4 {[%clk 0:01:38.7]} 38... Nxh4 {[%clk 0:00:40.4]}
39. a4 {[%clk 0:01:34.9]} 39... Re1+ {[%clk 0:00:30.5]} 40. Kf2 {[%clk
0:01:33.9]} 40... Nd3+ {[%clk 0:00:30.2]} 41. Kg3 {[%clk 0:01:30.9]} 41... Nf5+
{[%clk 0:00:30]} 42. Kf3 {[%clk 0:01:26.8]} 42... Re3+ {[%clk 0:00:29.6]} 43.
Kg4 {[%clk 0:01:21.1]} 43... Ne5+ {[%clk 0:00:24.4]} 44. Kf4 {[%clk 0:01:13.9]}
44... g5# {[%clk 0:00:24.5]} 0-1

[Event "Late-Titled-Tuesday-Blitz-April-23-2024"]
[Site "Chess.com"]
[Date "2024.04.23"]
[Round "1"]
[White "ritanovikova"]
[Black "Mackster23"]
[Result "0-1"]
[WhiteElo "2182"]
[BlackElo "2586"]
[TimeControl "180+1"]
[EndTime "14:06:20 PDT"]
[Termination "Mackster23 won on time"]

1. e4 {[%clk 0:02:59.4]} 1... c6 {[%clk 0:02:59.1]} 2. d4 {[%clk 0:02:59]} 2...
d5 {[%clk 0:02:56.8]} 3. Nd2 {[%clk 0:02:58.7]} 3... g6 {[%clk 0:02:54.1]} 4.
Ngf3 {[%clk 0:02:56.8]} 4... Bg7 {[%clk 0:02:53.9]} 5. c3 {[%clk 0:02:56.5]}
5... dxe4 {[%clk 0:02:49.3]} 6. Nxe4 {[%clk 0:02:56]} 6... Nf6 {[%clk
0:02:49.9]} 7. Nxf6+ {[%clk 0:02:55.4]} 7... exf6 {[%clk 0:02:50.8]} 8. h3
{[%clk 0:02:54.6]} 8... O-O {[%clk 0:02:50.7]} 9. Be2 {[%clk 0:02:54.2]} 9...
Re8 {[%clk 0:02:50.2]} 10. Be3 {[%clk 0:02:52.7]} 10... Be6 {[%clk 0:02:48.9]}
11. O-O {[%clk 0:02:47.9]} 11... Nd7 {[%clk 0:02:43.6]} 12. Re1 {[%clk 0:02:47]}
12... b5 {[%clk 0:02:41.2]} 13. Qd2 {[%clk 0:02:46.6]} 13... Nb6 {[%clk
0:02:40]} 14. b3 {[%clk 0:02:38]} 14... Qd7 {[%clk 0:02:38.8]} 15. Kh2 {[%clk
0:02:25.2]} 15... Nd5 {[%clk 0:02:31.9]} 16. Rac1 {[%clk 0:02:20.6]} 16... Nxe3
{[%clk 0:02:30.3]} 17. fxe3 {[%clk 0:02:20.1]} 17... Bh6 {[%clk 0:02:30]} 18.
Qd3 {[%clk 0:01:58.1]} 18... Qd6+ {[%clk 0:02:25.7]} 19. Kh1 {[%clk 0:01:53]}
19... Bf5 {[%clk 0:02:18.1]} 20. Qd1 {[%clk 0:01:31.8]} 20... Bxe3 {[%clk
0:02:15.3]} 21. Bd3 {[%clk 0:01:28.1]} 21... Bxd3 {[%clk 0:02:12.7]} 22. Qxd3
{[%clk 0:01:29]} 22... Bxc1 {[%clk 0:02:12.6]} 23. Rxc1 {[%clk 0:01:29.9]} 23...
Re7 {[%clk 0:02:03.8]} 24. Rf1 {[%clk 0:01:28.2]} 24... Rae8 {[%clk 0:02:01.8]}
25. Ng1 {[%clk 0:01:00.8]} 25... Kg7 {[%clk 0:02:00]} 26. Qd2 {[%clk 0:00:57.4]}
26... Re3 {[%clk 0:01:58.1]} 27. c4 {[%clk 0:00:53.3]} 27... bxc4 {[%clk
0:01:56.3]} 28. bxc4 {[%clk 0:00:54.2]} 28... R3e4 {[%clk 0:01:53.8]} 29. Nf3
{[%clk 0:00:51.1]} 29... c5 {[%clk 0:01:43.9]} 30. Rd1 {[%clk 0:00:40.9]} 30...
cxd4 {[%clk 0:01:42.8]} 31. Qa5 {[%clk 0:00:36.5]} 31... d3 {[%clk 0:01:24.3]}
32. c5 {[%clk 0:00:34]} 32... Qg3 {[%clk 0:01:16.3]} 33. Qxa7 {[%clk 0:00:24.3]}
33... d2 {[%clk 0:01:10.6]} 34. c6 {[%clk 0:00:08]} 34... Re1+ {[%clk
0:01:09.4]} 0-1

[Event "Late-Titled-Tuesday-Blitz-April-23-2024"]
[Site "Chess.com"]
[Date "2024.04.23"]
[Round "1"]
[White "ural58"]
[Black "Szachulec75"]
[Result "1-0"]
[WhiteElo "2565"]
[BlackElo "2072"]
[TimeControl "180+1"]
[EndTime "14:06:20 PDT"]
[Termination "ural58 won by resignation"]

1. e4 {[%clk 0:02:59.8]} 1... d6 {[%clk 0:02:52.2]} 2. d4 {[%clk 0:02:58.9]}
2... Nf6 {[%clk 0:02:52.7]} 3. Nc3 {[%clk 0:02:58.5]} 3... c6 {[%clk 0:02:52.6]}
4. f4 {[%clk 0:02:56.6]} 4... Qb6 {[%clk 0:02:48.8]} 5. a3 {[%clk 0:02:46.1]}
5... Nbd7 {[%clk 0:02:28.2]} 6. Be3 {[%clk 0:02:43.7]} 6... Qc7 {[%clk
0:02:21.8]} 7. h3 {[%clk 0:02:42.7]} 7... e5 {[%clk 0:02:22.2]} 8. Nf3 {[%clk
0:02:41.7]} 8... Be7 {[%clk 0:02:22.2]} 9. g4 {[%clk 0:02:37.6]} 9... O-O {[%clk
0:02:19.6]} 10. Bg2 {[%clk 0:02:36.2]} 10... Re8 {[%clk 0:02:11.5]} 11. O-O
{[%clk 0:02:35.2]} 11... Bf8 {[%clk 0:02:07.5]} 12. g5 {[%clk 0:02:24.9]} 12...
exf4 {[%clk 0:02:03.8]} 13. gxf6 {[%clk 0:02:23.4]} 13... fxe3 {[%clk
0:02:03.5]} 14. fxg7 {[%clk 0:02:22.9]} 14... Bxg7 {[%clk 0:02:01.6]} 15. Qd3
{[%clk 0:02:22.3]} 15... d5 {[%clk 0:01:51.5]} 16. e5 {[%clk 0:02:21.2]} 16...
f6 {[%clk 0:01:50.7]} 17. Qxe3 {[%clk 0:01:53.5]} 17... fxe5 {[%clk 0:01:49]}
18. dxe5 {[%clk 0:01:53.3]} 18... Nxe5 {[%clk 0:01:41.4]} 19. Rae1 {[%clk
0:01:49.6]} 19... Nxf3+ {[%clk 0:01:22.7]} 20. Qxf3 {[%clk 0:01:49]} 20... Rxe1
{[%clk 0:01:23.6]} 21. Rxe1 {[%clk 0:01:49]} 21... Bd7 {[%clk 0:01:24.1]} 22.
Re7 {[%clk 0:01:36.1]} 22... Rf8 {[%clk 0:01:24.4]} 23. Qe2 {[%clk 0:01:32.4]}
23... Qd6 {[%clk 0:01:22.3]} 24. Nd1 {[%clk 0:01:18.8]} 24... Bc8 {[%clk
0:01:17.1]} 25. c3 {[%clk 0:01:18.2]} 25... Qg6 {[%clk 0:01:11.5]} 26. Nf2
{[%clk 0:01:14.7]} 26... Kh8 {[%clk 0:01:08]} 27. Ng4 {[%clk 0:01:12.4]} 27...
h5 {[%clk 0:00:58.1]} 28. Nf2 {[%clk 0:01:10.5]} 28... Bf6 {[%clk 0:00:55.3]}
29. Rc7 {[%clk 0:00:59.3]} 29... d4 {[%clk 0:00:41.8]} 30. Kh1 {[%clk
0:00:45.5]} 30... dxc3 {[%clk 0:00:40.4]} 31. bxc3 {[%clk 0:00:43.3]} 31... Bxc3
{[%clk 0:00:40.8]} 32. Be4 {[%clk 0:00:42]} 32... Qg3 {[%clk 0:00:34.2]} 33.
Rh7+ {[%clk 0:00:40.3]} 33... Kg8 {[%clk 0:00:33.9]} 34. Qc4+ {[%clk 0:00:39.9]}
1-0